[Event "22nd ETCC Women 2019"]
[Site "Batumi"]
[Date "2019.10.26"]
[Round "3.14"]
[White "Franciskovic, Borka"]
[Black "Esadze, Tamari"]
[Result "1-0"]
[ECO "A14"]
[WhiteElo "2262"]
[BlackElo "1885"]
[Annotator "NA"]
[PlyCount "81"]
[EventDate "2019.10.24"]
[EventType "team-tourn"]
[EventCountry "GEO"]
[SourceTitle "playchess.com"]
[Source "ChessBase"]
[SourceQuality "1"]
[WhiteTeam "Croatia"]
[BlackTeam "Georgia"]
[WhiteTeamCountry "CRO"]
[BlackTeamCountry "GEO"]
[TimeControl "40/5400+30:1800+30"]

1. Nf3 {[%emt 0:00:00]} Nf6 {[%emt 0:00:00]} 2. c4 {[%emt 0:00:00]} e6 {[%emt 0:00:00]} 3. g3 {[%emt 0:00:00]} d5 {[%emt 0:00:21]} 4. Bg2 {[%emt 0:00:00]} Be7 {[%emt 0:00:14]} 5. O-O {[%emt 0:00:03]} O-O {[%emt 0:00:07]} 6. d4 {[%emt 0:00:19]} dxc4 {[%emt 0:03:18]} 7. Na3 {[%emt 0:00:32]} Bd7 {[%emt 0:27:32]} 8. Nxc4 {[%emt 0:02:33]} Bc6 {[%emt 0:00:29]} 9. Bf4 {[%emt 0:04:37]} Nd5 {[%emt 0:03:16]} 10. Bd2 {[%emt 0:07:47]} Nb6 {[%emt 0:03:38]} 11. Na5 {[%emt 0:12:08]} Be4 {[%emt 0:08:10]} 12. Rc1 {[%emt 0:07:58]} Na6 {[%emt 0:14:46]} 13. a3 {[%emt 0:17:07]} Qd5 {[%emt 0:07:47]} 14. b4 {[%emt 0:04:35]} Rad8 {[%emt 0:06:25]} 15. Qb3 {[%emt 0:05:19]} Qxb3 {[%emt 0:08:27]} 16. Nxb3 {[%emt 0:00:06]} c6 {[%emt 0:01:39]} 17. Rfd1 {[%emt 0:06:41]} f6 {[%emt 0:07:24]} 18. Bh3 {[%emt 0:04:38]} Kf7 {[%emt 0:00:32]} 19. Ne1 {[%emt 0:02:33]} Na4 {[%emt 0:01:27]} 20. Be3 {[%emt 0:04:53]} Rc8 {[%emt 0:03:16]} 21. Nd3 {[%emt 0:04:31]} Bxd3 {[%emt 0:00:37]} 22. Rxd3 {[%emt 0:00:04]} Bd6 {[%emt 0:00:46]} 23. Na5 {[%emt 0:01:18]} Rb8 {[%emt 0:00:18]} 24. Bd2 {[%emt 0:03:31]} f5 {[%emt 0:00:48]} 25. Bg2 {[%emt 0:02:24]} Nb6 {[%emt 0:00:29]} 26. b5 {[%emt 0:01:51]} cxb5 {[%emt 0:00:13]} 27. Bxb7 {[%emt 0:01:39]} Nc7 {[%emt 0:00:08]} 28. Bb4 {[%emt 0:01:06]} Ne8 {[%emt 0:00:51]} 29. Nc6 {[%emt 0:00:50]} Bxb4 {[%emt 0:00:54]} 30. axb4 {[%emt 0:02:39]} Nd6 {[%emt 0:00:19]} 31. Nxb8 {[%emt 0:00:07]} Rxb8 {[%emt 0:00:02]} 32. Rc7+ {[%emt 0:00:44]} Kf6 {[%emt 0:00:06]} 33. Bf3 {[%emt 0:00:53]} a6 {[%emt 0:01:03]} 34. h4 {[%emt 0:00:41]} Ndc4 {[%emt 0:00:38]} 35. Ra7 {[%emt 0:01:07]} Na4 {[%emt 0:00:56]} 36. Rxa6 {[%emt 0:00:43]} Nab2 {[%emt 0:00:31]} 37. Rc3 {[%emt 0:00:38]} Ke7 {[%emt 0:00:27]} 38. h5 {[%emt 0:00:52]} h6 {[%emt 0:00:15]} 39. Ra7+ {[%emt 0:00:24]} Kf6 {[%emt 0:00:06]} 40. Rb7 {[%emt 0:00:00]} Ra8 {[%emt 0:00:00]} 41. Rf7+ {[%emt 0:01:53]} 1-0

[Event "22nd ETCC Women 2019"]
[Site "Batumi"]
[Date "2019.10.26"]
[Round "3.15"]
[White "Majdan, Joanna"]
[Black "Lazarne Vajda, Szidonia"]
[Result "0-1"]
[ECO "C43"]
[WhiteElo "2352"]
[BlackElo "2353"]
[Annotator "NA"]
[PlyCount "52"]
[EventDate "2019.10.24"]
[EventType "team-tourn"]
[EventCountry "GEO"]
[SourceTitle "playchess.com"]
[Source "ChessBase"]
[SourceQuality "1"]
[WhiteTeam "Poland"]
[BlackTeam "Hungary"]
[WhiteTeamCountry "POL"]
[BlackTeamCountry "HUN"]
[TimeControl "40/5400+30:1800+30"]

1. e4 {[%emt 0:00:00]} e5 {[%emt 0:00:00]} 2. Nf3 {[%emt 0:00:00]} Nf6 {[%emt 0:00:05]} 3. d4 {[%emt 0:01:28]} Nxe4 {[%emt 0:01:33]} 4. dxe5 {[%emt 0:00:05]} d5 {[%emt 0:05:18]} 5. Nbd2 {[%emt 0:00:17]} Nxd2 {[%emt 0:05:54]} 6. Qxd2 {[%emt 0:00:06]} Be7 {[%emt 0:02:55]} 7. Bd3 {[%emt 0:11:27]} Nc6 {[%emt 0:05:43]} 8. c3 {[%emt 0:09:15]} Be6 {[%emt 0:10:39]} 9. Qf4 {[%emt 0:08:30]} Qd7 {[%emt 0:06:23]} 10. O-O {[%emt 0:05:36]} h6 {[%emt 0:08:25]} 11. Bb5 {[%emt 0:07:07]} a6 {[%emt 0:00:46]} 12. Ba4 {[%emt 0:00:43]} O-O {[%emt 0:08:23]} 13. Qg3 {[%emt 0:03:39]} Kh8 {[%emt 0:01:58]} 14. Nd4 {[%emt 0:02:22]} Nxd4 {[%emt 0:06:37]} 15. cxd4 {[%emt 0:07:41]} Qxa4 {[%emt 0:00:24]} 16. Be3 {[%emt 0:00:04]} Rac8 {[%emt 0:05:05]} 17. f4 {[%emt 0:06:18]} Bf5 {[%emt 0:01:23]} 18. Qf3 {[%emt 0:00:05]} Be4 {[%emt 0:04:08]} 19. Qh3 {[%emt 0:01:43]} f5 {[%emt 0:00:37]} 20. exf6 {[%emt 0:00:25]} Bxf6 {[%emt 0:00:06]} 21. b3 {[%emt 0:00:20]} Qb4 {[%emt 0:02:38]} 22. Rad1 {[%emt 0:00:41]} Rce8 {[%emt 0:06:08]} 23. g4 {[%emt 0:02:22]} Bd8 {[%emt 0:03:33]} 24. Bc1 {[%emt 0:05:48]} Kg8 {[%emt 0:00:55]} 25. f5 {[%emt 0:01:13]} Bf6 {[%emt 0:02:04]} 26. Be3 {[%emt 0:00:45]} Qe7 {[%emt 0:00:17]} 0-1

[Event "22nd ETCC Women 2019"]
[Site "Batumi"]
[Date "2019.10.26"]
[Round "3.15"]
[White "Donghvani, Nia"]
[Black "Medic, Mirjana"]
[Result "0-1"]
[ECO "C06"]
[WhiteElo "1903"]
[BlackElo "2163"]
[Annotator "NA"]
[PlyCount "68"]
[EventDate "2019.10.24"]
[EventType "team-tourn"]
[EventCountry "GEO"]
[SourceTitle "playchess.com"]
[Source "ChessBase"]
[SourceQuality "1"]
[WhiteTeam "Georgia"]
[BlackTeam "Croatia"]
[WhiteTeamCountry "GEO"]
[BlackTeamCountry "CRO"]
[TimeControl "40/5400+30:1800+30"]

1. e4 {[%emt 0:00:00]} e6 {[%emt 0:00:00]} 2. d4 {[%emt 0:00:00]} d5 {[%emt 0:00:00]} 3. Nd2 {[%emt 0:00:00]} Nf6 {[%emt 0:00:02]} 4. e5 {[%emt 0:00:00]} Nfd7 {[%emt 0:00:06]} 5. Bd3 {[%emt 0:00:00]} c5 {[%emt 0:00:09]} 6. c3 {[%emt 0:00:02]} Nc6 {[%emt 0:00:06]} 7. Ne2 {[%emt 0:00:15]} cxd4 {[%emt 0:00:19]} 8. cxd4 {[%emt 0:00:06]} f6 {[%emt 0:00:48]} 9. exf6 {[%emt 0:00:47]} Nxf6 {[%emt 0:00:02]} 10. O-O {[%emt 0:07:02]} Bd6 {[%emt 0:00:08]} 11. f4 {[%emt 0:07:05]} O-O {[%emt 0:02:16]} 12. Nf3 {[%emt 0:00:20]} Qb6 {[%emt 0:13:38]} 13. Kh1 {[%emt 0:00:57]} Bd7 {[%emt 0:02:59]} 14. h3 {[%emt 0:10:32]} Rae8 {[%emt 0:07:42]} 15. b3 {[%emt 0:12:35]} a5 {[%emt 0:06:20]} 16. Ne5 {[%emt 0:02:36]} Nb4 {[%emt 0:03:23]} 17. Nxd7 {[%emt 0:08:29]} Nxd7 {[%emt 0:00:02]} 18. Bb1 {[%emt 0:01:22]} Rf7 {[%emt 0:05:35]} 19. Rf3 {[%emt 0:15:19]} Nf6 {[%emt 0:05:06]} 20. Ng3 {[%emt 0:05:10]} Nc6 {[%emt 0:01:57]} 21. Be3 {[%emt 0:00:29]} Ba3 {[%emt 0:04:12]} 22. Rf2 {[%emt 0:09:29]} g6 {[%emt 0:09:38]} 23. Bd3 {[%emt 0:05:40]} Ref8 {[%emt 0:01:39]} 24. Rb1 {[%emt 0:03:52]} Nb4 {[%emt 0:02:07]} 25. Re2 {[%emt 0:06:47]} Rc7 {[%emt 0:01:02]} 26. f5 {[%emt 0:02:32]} exf5 {[%emt 0:04:36]} 27. Bh6 {[%emt 0:00:41]} Rfc8 {[%emt 0:00:13]} 28. Bxf5 {[%emt 0:01:03]} gxf5 {[%emt 0:01:36]} 29. Nxf5 {[%emt 0:00:38]} Nc2 {[%emt 0:09:13]} 30. Rd2 {[%emt 0:00:37]} Rc3 {[%emt 0:04:54]} 31. Rd3 {[%emt 0:00:30]} Ne4 {[%emt 0:02:25]} 32. Rxc3 {[%emt 0:00:28]} Rxc3 {[%emt 0:00:12]} 33. Qg4+ {[%emt 0:00:34]} Qg6 {[%emt 0:00:09]} 34. Ne7+ {[%emt 0:00:08]} Bxe7 {[%emt 0:00:11]} 0-1

[Event "22nd ETCC Women 2019"]
[Site "Batumi"]
[Date "2019.10.26"]
[Round "3.16"]
[White "Gara, Ticia"]
[Black "Sliwicka, Alicja"]
[Result "1/2-1/2"]
[ECO "A15"]
[WhiteElo "2322"]
[BlackElo "2307"]
[Annotator "NA"]
[PlyCount "89"]
[EventDate "2019.10.24"]
[EventType "team-tourn"]
[EventCountry "GEO"]
[SourceTitle "playchess.com"]
[Source "ChessBase"]
[SourceQuality "1"]
[WhiteTeam "Hungary"]
[BlackTeam "Poland"]
[WhiteTeamCountry "HUN"]
[BlackTeamCountry "POL"]
[TimeControl "40/5400+30:1800+30"]

1. c4 {[%emt 0:00:00]} Nf6 {[%emt 0:00:00]} 2. g3 {[%emt 0:00:00]} e5 {[%emt 0:00:28]} 3. Bg2 {[%emt 0:00:13]} d6 {[%emt 0:00:17]} 4. Nc3 {[%emt 0:00:41]} Be7 {[%emt 0:00:41]} 5. d4 {[%emt 0:01:42]} Nbd7 {[%emt 0:00:25]} 6. Nf3 {[%emt 0:00:29]} O-O {[%emt 0:00:08]} 7. O-O {[%emt 0:00:10]} c6 {[%emt 0:00:07]} 8. Qc2 {[%emt 0:00:49]} Re8 {[%emt 0:00:09]} 9. h3 {[%emt 0:02:39]} Bf8 {[%emt 0:01:29]} 10. e4 {[%emt 0:00:45]} a6 {[%emt 0:01:24]} 11. d5 {[%emt 0:01:01]} Qc7 {[%emt 0:07:31]} 12. Be3 {[%emt 0:02:21]} b5 {[%emt 0:06:05]} 13. dxc6 {[%emt 0:05:32]} Qxc6 {[%emt 0:01:24]} 14. Nd5 {[%emt 0:01:31]} bxc4 {[%emt 0:09:47]} 15. Nd2 {[%emt 0:00:54]} Bb7 {[%emt 0:03:56]} 16. Qxc4 {[%emt 0:02:24]} Rac8 {[%emt 0:03:26]} 17. Rac1 {[%emt 0:08:51]} Nxd5 {[%emt 0:03:22]} 18. exd5 {[%emt 0:01:05]} Qb5 {[%emt 0:00:47]} 19. Qxb5 {[%emt 0:03:50]} axb5 {[%emt 0:00:20]} 20. Nb3 {[%emt 0:08:56]} Nf6 {[%emt 0:02:03]} 21. Rfd1 {[%emt 0:02:37]} Rxc1 {[%emt 0:02:50]} 22. Bxc1 {[%emt 0:02:44]} e4 {[%emt 0:04:54]} 23. Bf1 {[%emt 0:22:22]} Bxd5 {[%emt 0:02:18]} 24. Bxb5 {[%emt 0:03:50]} Rb8 {[%emt 0:01:25]} 25. Be2 {[%emt 0:05:00]} Bxb3 {[%emt 0:02:17]} 26. axb3 {[%emt 0:00:03]} Rxb3 {[%emt 0:02:34]} 27. Bc4 {[%emt 0:01:34]} Rb7 {[%emt 0:02:49]} 28. Bg5 {[%emt 0:06:53]} Nd7 {[%emt 0:05:22]} 29. Bf4 {[%emt 0:06:19]} Nc5 {[%emt 0:05:38]} 30. Rd2 {[%emt 0:02:58]} Rb4 {[%emt 0:05:03]} 31. b3 {[%emt 0:01:17]} Nxb3 {[%emt 0:06:01]} 32. Bxb3 {[%emt 0:00:06]} Rxb3 {[%emt 0:00:06]} 33. Bxd6 {[%emt 0:00:05]} Rd3 {[%emt 0:05:34]} 34. Bf4 {[%emt 0:00:30]} f6 {[%emt 0:01:36]} 35. Kg2 {[%emt 0:01:39]} g5 {[%emt 0:06:50]} 36. Rxd3 {[%emt 0:01:32]} exd3 {[%emt 0:00:05]} 37. Bd2 {[%emt 0:00:01]} Kf7 {[%emt 0:01:56]} 38. Kf3 {[%emt 0:00:08]} Bc5 {[%emt 0:00:18]} 39. g4 {[%emt 0:03:30]} Ke6 {[%emt 0:03:29]} 40. Ke4 {[%emt 0:00:00]} Bxf2 {[%emt 0:00:00]} 41. Kxd3 {[%emt 0:01:22]} Bc5 {[%emt 0:06:57]} 42. Ke4 {[%emt 0:00:20]} Bd6 {[%emt 0:02:12]} 43. Be1 {[%emt 0:00:42]} h5 {[%emt 0:01:12]} 44. Bc3 {[%emt 0:05:21]} h4 {[%emt 0:00:22]} 45. Bd2 {[%emt 0:01:14] Ke5+} 1/2-1/2

[Event "22nd ETCC Women 2019"]
[Site "Batumi"]
[Date "2019.10.26"]
[Round "3.16"]
[White "Purgar, Ivona"]
[Black "Lomaia, Diana"]
[Result "0-1"]
[ECO "B91"]
[WhiteElo "2205"]
[BlackElo "1861"]
[Annotator "NA"]
[PlyCount "88"]
[EventDate "2019.10.24"]
[EventType "team-tourn"]
[EventCountry "GEO"]
[SourceTitle "playchess.com"]
[Source "ChessBase"]
[SourceQuality "1"]
[WhiteTeam "Croatia"]
[BlackTeam "Georgia"]
[WhiteTeamCountry "CRO"]
[BlackTeamCountry "GEO"]
[TimeControl "40/5400+30:1800+30"]

1. e4 {[%emt 0:00:00]} c5 {[%emt 0:00:00]} 2. Nf3 {[%emt 0:00:00]} d6 {[%emt 0:00:00]} 3. d4 {[%emt 0:00:00]} cxd4 {[%emt 0:00:00]} 4. Nxd4 {[%emt 0:00:00]} Nf6 {[%emt 0:00:00]} 5. Nc3 {[%emt 0:00:15]} a6 {[%emt 0:00:08]} 6. g3 {[%emt 0:00:36]} e5 {[%emt 0:00:45]} 7. Nde2 {[%emt 0:00:36]} Be7 {[%emt 0:01:04]} 8. Bg2 {[%emt 0:03:16]} Be6 {[%emt 0:02:08]} 9. a4 {[%emt 0:02:07]} Nc6 {[%emt 0:03:03]} 10. Nd5 {[%emt 0:04:01]} Bxd5 {[%emt 0:08:38]} 11. exd5 {[%emt 0:00:18]} Na5 {[%emt 0:00:54]} 12. O-O {[%emt 0:01:48]} O-O {[%emt 0:01:11]} 13. Qd3 {[%emt 0:05:26]} Qc7 {[%emt 0:05:23]} 14. b3 {[%emt 0:01:27]} Nd7 {[%emt 0:06:28]} 15. Be3 {[%emt 0:12:49]} f5 {[%emt 0:07:15]} 16. Rac1 {[%emt 0:21:48]} b6 {[%emt 0:06:35]} 17. Rfd1 {[%emt 0:03:21]} g6 {[%emt 0:09:32]} 18. Rb1 {[%emt 0:08:29]} Rfc8 {[%emt 0:13:32]} 19. Rdc1 {[%emt 0:02:50]} Nb7 {[%emt 0:10:55]} 20. c4 {[%emt 0:03:08]} a5 {[%emt 0:01:06]} 21. Nc3 {[%emt 0:01:02]} Nbc5 {[%emt 0:00:38]} 22. Qd2 {[%emt 0:08:23]} Qd8 {[%emt 0:01:39]} 23. Re1 {[%emt 0:04:10]} Na6 {[%emt 0:05:15]} 24. h4 {[%emt 0:05:09]} Ndc5 {[%emt 0:03:04]} 25. Bh3 {[%emt 0:05:23]} Bf6 {[%emt 0:06:50]} 26. h5 {[%emt 0:01:25]} Rc7 {[%emt 0:00:55]} 27. Qe2 {[%emt 0:02:36]} Rf7 {[%emt 0:03:04]} 28. Bg2 {[%emt 0:01:27]} Raa7 {[%emt 0:01:06]} 29. Nb5 {[%emt 0:00:32]} Rae7 {[%emt 0:00:27]} 30. Qd1 {[%emt 0:00:57]} Nb4 {[%emt 0:00:43]} 31. Bxc5 {[%emt 0:01:03]} bxc5 {[%emt 0:00:14]} 32. Bh3 {[%emt 0:00:47]} e4 {[%emt 0:02:14]} 33. Bf1 {[%emt 0:00:22]} Rg7 {[%emt 0:01:00]} 34. h6 {[%emt 0:00:35]} Rgf7 {[%emt 0:00:02]} 35. Qd2 {[%emt 0:00:28]} Re8 {[%emt 0:00:40]} 36. Qf4 {[%emt 0:00:30]} Be5 {[%emt 0:00:26]} 37. Qd2 {[%emt 0:00:13]} Qf6 {[%emt 0:00:26]} 38. Rbd1 {[%emt 0:00:50]} Ree7 {[%emt 0:00:33]} 39. Rb1 {[%emt 0:00:24]} f4 {[%emt 0:00:26]} 40. Rxe4 {[%emt 0:00:00]} fxg3 {[%emt 0:00:00]} 41. fxg3 {[%emt 0:19:03]} Bxg3 {[%emt 0:08:27]} 42. Rg4 {[%emt 0:07:05]} Bf2+ {[%emt 0:06:27]} 43. Kh1 {[%emt 0:00:16]} Qf5 {[%emt 0:06:56]} 44. Nxd6 {[%emt 0:05:59]} Qxg4 {[%emt 0:00:21]} 0-1

[Event "22nd ETCC Women 2019"]
[Site "Batumi"]
[Date "2019.10.26"]
[Round "3.17"]
[White "Cramling, Pia"]
[Black "Worek, Joanna"]
[Result "1-0"]
[ECO "A38"]
[WhiteElo "2462"]
[BlackElo "2319"]
[Annotator "ChessBase"]
[PlyCount "137"]
[EventDate "2019.10.24"]
[EventType "team-tourn"]
[EventCountry "GEO"]
[SourceTitle "playchess.com"]
[Source "ChessBase"]
[SourceQuality "1"]
[WhiteTeam "Sweden"]
[BlackTeam "Czech Republic"]
[WhiteTeamCountry "SWE"]
[BlackTeamCountry "CZE"]
[TimeControl "40/5400+30:1800+30"]

1. c4 {[%emt 0:00:00]} c5 {[%emt 0:00:00]} 2. Nf3 {[%emt 0:00:00]} Nf6 {[%emt 0:00:15]} 3. Nc3 {[%emt 0:00:04]} Nc6 {[%emt 0:00:06]} 4. g3 {[%emt 0:01:28]} g6 {[%emt 0:06:05]} 5. Bg2 {[%emt 0:01:04]} Bg7 {[%emt 0:00:19]} 6. d4 {[%emt 0:00:37]} cxd4 {[%emt 0:01:28]} 7. Nxd4 {[%emt 0:00:04]} O-O {[%emt 0:04:16]} 8. O-O {[%emt 0:00:17]} Qa5 {[%emt 0:03:27]} 9. e3 {[%emt 0:11:40]} Nxd4 {[%emt 0:05:13]} 10. exd4 {[%emt 0:00:40]} d6 {[%emt 0:00:17]} 11. h3 {[%emt 0:12:04]} Rb8 {[%emt 0:09:07]} 12. Be3 {[%emt 0:12:07]} a6 {[%emt 0:07:32]} 13. a3 {[%emt 0:02:58]} Be6 {[%emt 0:08:20]} 14. d5 {[%emt 0:05:35]} Bd7 {[%emt 0:01:13]} 15. b4 {[%emt 0:13:53]} Qc7 {[%emt 0:02:14]} 16. c5 {[%emt 0:03:49]} Qc8 {[%emt 0:19:18]} 17. Kh2 {[%emt 0:05:00]} Ng4+ {[%emt 0:01:13]} 18. hxg4 {[%emt 0:00:03]} Bxc3 {[%emt 0:00:04]} 19. cxd6 {[%emt 0:06:47]} Bxa1 {[%emt 0:05:01]} 20. dxe7 {[%emt 0:00:49]} Be5 {[%emt 0:02:08]} 21. exf8=Q+ {[%emt 0:00:27]} Qxf8 {[%emt 0:00:16]} 22. g5 {[%emt 0:02:49]} a5 {[%emt 0:05:06]} 23. Bc5 {[%emt 0:01:26]} Qd8 {[%emt 0:02:21]} 24. f4 {[%emt 0:00:40]} Bg7 {[%emt 0:00:10]} 25. Re1 {[%emt 0:01:19]} axb4 {[%emt 0:00:47]} 26. axb4 {[%emt 0:00:53]} Ra8 {[%emt 0:00:49]} 27. Qd2 {[%emt 0:00:23]} Ra3 {[%emt 0:02:46]} 28. Bd4 {[%emt 0:01:45]} Bxd4 {[%emt 0:07:57]} 29. Qxd4 {[%emt 0:00:01]} Ra2 {[%emt 0:00:16]} 30. Kg1 {[%emt 0:00:38]} Qc8 {[%emt 0:02:51]} 31. Qc5 {[%emt 0:01:53]} Qa8 {[%emt 0:00:25]} 32. Re7 {[%emt 0:05:31]} Bg4 {[%emt 0:00:01]} 33. Qc3 {[%emt 0:02:41]} Qa7+ {[%emt 0:02:40]} 34. Kh2 {[%emt 0:00:39]} Kf8 {[%emt 0:01:13]} 35. d6 {[%emt 0:01:12]} Rxg2+ {[%emt 0:00:45]} 36. Kxg2 {[%emt 0:00:07]} Qa2+ {[%emt 0:00:10]} 37. Kg1 {[%emt 0:00:17]} Qa7+ {[%emt 0:00:28]} 38. Re3 {[%emt 0:01:00]} Kg8 {[%emt 0:00:13]} 39. Qd2 {[%emt 0:02:29]} Qa1+ {[%emt 0:00:19]} 40. Re1 {[%emt 0:00:00]} Qa4 {[%emt 0:00:00]} 41. Qc3 {[%emt 0:07:09]} Qa7+ {[%emt 0:04:01]} 42. Qc5 {[%emt 0:03:18]} Qa4 {[%emt 0:00:10]} 43. Qd4 {[%emt 0:01:09]} Qc6 {[%emt 0:02:08]} 44. Qc5 {[%emt 0:09:37]} Qa4 {[%emt 0:00:34]} 45. Qa5 {[%emt 0:00:33]} Qc6 {[%emt 0:03:18]} 46. Qc7 {[%emt 0:02:03]} Qa4 {[%emt 0:00:17]} 47. Qd8+ {[%emt 0:02:04]} Kg7 {[%emt 0:00:02]} 48. Qf6+ {[%emt 0:00:20]} Kg8 {[%emt 0:00:09]} 49. Ra1 {[%emt 0:04:47]} Qe8 {[%emt 0:05:22]} 50. Qe7 {[%emt 0:00:37]} Qc8 {[%emt 0:00:54]} 51. Qc7 {[%emt 0:03:22]} Qe8 {[%emt 0:00:55]} 52. Qc5 {[%emt 0:01:49]} Bd7 {[%emt 0:02:18]} 53. Kf2 {[%emt 0:00:13]} Bc6 {[%emt 0:03:54]} 54. Qd4 {[%emt 0:00:41]} Bd7 {[%emt 0:00:21]} 55. Qe5 {[%emt 0:00:58]} Qc8 {[%emt 0:00:05]} 56. Qc5 {[%emt 0:00:17]} Qe8 {[%emt 0:00:06]} 57. Re1 {[%emt 0:00:17]} Qa8 {[%emt 0:00:10]} 58. Qa5 {[%emt 0:00:22]} Qb8 {[%emt 0:01:41]} 59. Qb6 {[%emt 0:00:26]} Qa8 {[%emt 0:00:29]} 60. Kg1 {[%emt 0:01:02]} Bc6 {[%emt 0:04:40]} 61. Qa5 {[%emt 0:00:40]} Qc8 {[%emt 0:00:38]} 62. Ra1 {[%emt 0:02:12]} Kg7 {[%emt 0:00:45]} 63. Qe5+ {[%emt 0:00:25]} Kg8 {[%emt 0:00:01]} 64. Qc3 {[%emt 0:00:44]} Qe8 {[%emt 0:02:02]} 65. Kf2 {[%emt 0:00:20]} Qd8 {[%emt 0:00:58]} 66. Ra7 {[%emt 0:01:07]} f6 {[%emt 0:06:19]} 67. Qc4+ {[%emt 0:00:57]} Kf8 {[%emt 0:00:05]} 68. Qd4 {[%emt 0:00:10]} Kg8 {[%emt 0:00:07]} 69. b5 {[%emt 0:00:23]} 1-0

[Event "22nd ETCC Women 2019"]
[Site "Batumi"]
[Date "2019.10.26"]
[Round "3.17"]
[White "Repkova, Eva"]
[Black "Mkrtchian, Lilit"]
[Result "1/2-1/2"]
[ECO "A45"]
[WhiteElo "2315"]
[BlackElo "2402"]
[Annotator "NA"]
[PlyCount "63"]
[EventDate "2019.10.24"]
[EventType "team-tourn"]
[EventCountry "GEO"]
[SourceTitle "playchess.com"]
[Source "ChessBase"]
[SourceQuality "1"]
[WhiteTeam "Slovakia"]
[BlackTeam "Armenia"]
[WhiteTeamCountry "SVK"]
[BlackTeamCountry "ARM"]
[TimeControl "40/5400+30:1800+30"]

1. d4 {[%emt 0:00:00]} Nf6 {[%emt 0:00:41]} 2. Bf4 {[%emt 0:00:00]} c5 {[%emt 0:01:13]} 3. d5 {[%emt 0:16:44]} b5 {[%emt 0:01:18]} 4. f3 {[%emt 0:03:52]} e6 {[%emt 0:12:24]} 5. dxe6 {[%emt 0:06:10]} fxe6 {[%emt 0:00:23]} 6. e4 {[%emt 0:00:24]} a6 {[%emt 0:09:13]} 7. c4 {[%emt 0:05:07]} bxc4 {[%emt 0:01:01]} 8. Bxc4 {[%emt 0:00:08]} d5 {[%emt 0:00:15]} 9. exd5 {[%emt 0:00:32]} exd5 {[%emt 0:02:19]} 10. Bb3 {[%emt 0:00:03]} c4 {[%emt 0:02:12]} 11. Ba4+ {[%emt 0:00:23]} Bd7 {[%emt 0:00:13]} 12. Nc3 {[%emt 0:01:17]} Bc5 {[%emt 0:05:21]} 13. Nxd5 {[%emt 0:07:56]} O-O {[%emt 0:05:57]} 14. Ne2 {[%emt 0:13:33]} Bxa4 {[%emt 0:08:02]} 15. Nxf6+ {[%emt 0:00:05]} Qxf6 {[%emt 0:00:00]} 16. Qxa4 {[%emt 0:07:46]} Qe6 {[%emt 0:01:04]} 17. O-O-O {[%emt 0:02:01]} Nc6 {[%emt 0:13:20]} 18. Bd2 {[%emt 0:12:10]} Ne5 {[%emt 0:10:40]} 19. Nf4 {[%emt 0:01:30]} Qb6 {[%emt 0:01:44]} 20. Bc3 {[%emt 0:06:25]} Be3+ {[%emt 0:06:00]} 21. Kb1 {[%emt 0:00:07]} Bxf4 {[%emt 0:00:10]} 22. g3 {[%emt 0:00:04]} Qb5 {[%emt 0:02:39]} 23. Qxb5 {[%emt 0:00:43]} axb5 {[%emt 0:00:05]} 24. gxf4 {[%emt 0:00:03]} Nd3 {[%emt 0:00:12]} 25. Rhg1 {[%emt 0:01:16]} Ra7 {[%emt 0:02:02]} 26. Be5 {[%emt 0:04:45]} b4 {[%emt 0:09:06]} 27. b3 {[%emt 0:02:01]} Nxe5 {[%emt 0:01:44]} 28. fxe5 {[%emt 0:00:04]} cxb3 {[%emt 0:00:12]} 29. axb3 {[%emt 0:00:06]} Rxf3 {[%emt 0:00:14]} 30. Rg3 {[%emt 0:03:50]} Rxg3 {[%emt 0:01:57]} 31. hxg3 {[%emt 0:00:03]} Kf7 {[%emt 0:00:21]} 32. Rd4 {[%emt 0:01:23]} 1/2-1/2

[Event "22nd ETCC Women 2019"]
[Site "Batumi"]
[Date "2019.10.26"]
[Round "3.18"]
[White "Danielian, Elina"]
[Black "Hagarova, Zuzana"]
[Result "1-0"]
[ECO "E62"]
[WhiteElo "2385"]
[BlackElo "2295"]
[Annotator "NA"]
[PlyCount "61"]
[EventDate "2019.10.24"]
[EventType "team-tourn"]
[EventCountry "GEO"]
[SourceTitle "playchess.com"]
[Source "ChessBase"]
[SourceQuality "1"]
[WhiteTeam "Armenia"]
[BlackTeam "Slovakia"]
[WhiteTeamCountry "ARM"]
[BlackTeamCountry "SVK"]
[TimeControl "40/5400+30:1800+30"]

1. d4 {[%emt 0:00:00]} Nf6 {[%emt 0:00:00]} 2. Nf3 {[%emt 0:00:00]} g6 {[%emt 0:00:00]} 3. c4 {[%emt 0:00:06]} Bg7 {[%emt 0:03:42]} 4. g3 {[%emt 0:00:25]} O-O {[%emt 0:00:26]} 5. Bg2 {[%emt 0:00:05]} d6 {[%emt 0:00:46]} 6. O-O {[%emt 0:00:15]} Nc6 {[%emt 0:00:40]} 7. Nc3 {[%emt 0:00:12]} e5 {[%emt 0:00:34]} 8. dxe5 {[%emt 0:03:53]} Nxe5 {[%emt 0:00:08]} 9. Qb3 {[%emt 0:05:32]} Nfd7 {[%emt 0:21:49]} 10. Be3 {[%emt 0:08:03]} Nxf3+ {[%emt 0:10:55]} 11. exf3 {[%emt 0:02:32]} Ne5 {[%emt 0:04:46]} 12. f4 {[%emt 0:01:30]} Ng4 {[%emt 0:10:09]} 13. Bd2 {[%emt 0:00:07]} Rb8 {[%emt 0:05:56]} 14. Rad1 {[%emt 0:01:36]} Be6 {[%emt 0:01:06]} 15. a4 {[%emt 0:26:31]} a6 {[%emt 0:09:19]} 16. Nd5 {[%emt 0:03:31]} b5 {[%emt 0:01:12]} 17. Ba5 {[%emt 0:03:13]} bxa4 {[%emt 0:16:00]} 18. Qxa4 {[%emt 0:00:10]} Bxd5 {[%emt 0:00:16]} 19. cxd5 {[%emt 0:07:57]} Rxb2 {[%emt 0:00:29]} 20. Qc6 {[%emt 0:00:17]} Qf6 {[%emt 0:02:22]} 21. Bxc7 {[%emt 0:02:59]} Qf5 {[%emt 0:00:32]} 22. h3 {[%emt 0:10:09]} Rc2 {[%emt 0:05:44]} 23. Qb6 {[%emt 0:00:15]} Nf6 {[%emt 0:03:40]} 24. Bxd6 {[%emt 0:01:11]} Rfc8 {[%emt 0:00:22]} 25. Qxa6 {[%emt 0:02:51]} h5 {[%emt 0:00:08]} 26. Qd3 {[%emt 0:02:44]} Qd7 {[%emt 0:01:17]} 27. Be5 {[%emt 0:00:14]} Ra2 {[%emt 0:00:22]} 28. d6 {[%emt 0:02:54]} h4 {[%emt 0:00:38]} 29. g4 {[%emt 0:01:28]} Rc5 {[%emt 0:00:18]} 30. Qd4 {[%emt 0:00:38]} Nxg4 {[%emt 0:00:36]} 31. Qxc5 {[%emt 0:01:29]} 1-0